bitfinex/quotes_ETHUSD_20240924
["timestamp","ask_amount","ask_price","bid_price","bid_amount"]
[1727215876515,0.0384013,2669.6,2669.5,7.60961881]
[1727215876720,0.0384013,2669.6,2669.5,7.67528679]
[1727215877718,0.0384013,2669.6,2669.5,0.06566798]
[1727215878159,0.0384013,2669.6,2669.0,3.74667]
[1727215878318,0.49236095,2669.6,2669.0,3.74667]
[1727215878520,4.16278543,2669.6,2669.1,0.06251903]
[1727215878919,3.74611,2669.5,2668.9,0.7742]
[1727215879229,3.74625,2669.4,2668.8,3.08940881]
[1727215879439,3.74625,2669.4,2669.0,0.06258564]
[1727215879619,4.53691954,2669.5,2668.9,0.06265225]
[1727215879817,0.4953735,2669.4,2669.1,0.06251903]
[1727215880060,0.4953735,2669.4,2669.0,0.06258564]
[1727215880263,4.2416235,2669.4,2669.2,0.06245243]
[1727215880473,0.79876535,2669.3,2669.1,0.06251903]
[1727215880623,0.79876535,2669.3,2668.8,3.74697]
[1727215880829,0.79876535,2669.3,2669.2,0.06245243]
[1727215881066,0.79876535,2669.3,2668.8,3.74697]
[1727215881362,0.0384013,2669.6,2669.0,3.74659]
[1727215881363,3.7843613,2669.6,2669.0,3.74659]
[1727215881551,3.7843613,2669.6,2669.1,0.06251903]
[1727215882068,4.54874,2669.2,2669.1,0.06251903]
[1727215882281,5.378244,2669.2,2669.1,0.06251903]
[1727215882563,3.74705,2668.8,2668.2,3.74781]
[1727215882769,3.74705,2668.8,2668.3,0.06305203]
[1727215882972,3.74694,2668.9,2668.3,3.74769]
[1727215883170,4.496314,2668.9,2668.4,0.06298539]
[1727215883374,3.74694,2668.9,2668.4,0.06298539]
[1727215884072,3.74716,2668.7,2668.4,0.06298539]
[1727215884230,3.74694,2668.9,2668.4,0.06298539]
[1727215884425,3.74694,2668.9,2668.2,3.74781]
[1727215884426,3.74701,2668.8,2668.2,3.74781]
[1727215884671,3.74701,2668.8,2668.5,0.06291875]
[1727215884870,3.74701,2668.8,2668.2,3.74781]
[1727215885074,3.74714,2668.7,2668.6,0.06285212]
[1727215885274,4.5340844,2668.7,2668.1,0.7742]
[1727215885475,3.74729,2668.6,2668.1,0.7742]
[1727215886371,3.74757,2668.4,2668.1,0.7742]
[1727215886556,7.49494,2668.5,2667.9,3.74814]
[1727215886759,3.74743,2668.5,2668.0,0.06325199]
[1727215886972,3.7477,2668.3,2667.8,4.52251]
[1727215887176,3.74775,2668.3,2667.8,0.7742]
[1727215887379,3.74803,2668.1,2667.9,0.06331865]
[1727215887597,3.74803,2668.1,2667.5,7.52301]
[1727215887796,3.74803,2668.1,2668.0,0.06372154]
[1727215887998,3.74803,2668.1,2667.5,4.52301]
[1727215888557,3.74784,2668.2,2667.6,3.81265822]
[1727215889178,7.49577,2668.2,2667.6,3.81259822]
[1727215890201,3.74762,2668.4,2667.8,3.7483]
[1727215890700,3.74762,2668.4,2667.9,3.8127773]
[1727215891065,3.74791,2668.2,2667.9,0.0645273]
[1727215891328,3.7477,2668.3,2667.9,0.0645273]
[1727215891501,3.7477,2668.3,2667.8,3.74839]
[1727215891701,3.74762,2668.4,2668.0,0.06442212]
[1727215891702,3.74787,2668.2,2668.0,0.06442212]
[1727215891999,3.74798,2668.1,2667.6,3.74854]
[1727215892400,3.74798,2668.1,2667.7,0.0646722]
[1727215892699,3.74785,2668.2,2667.7,0.0646722]
[1727215892897,3.74785,2668.2,2667.6,3.74859]
[1727215893106,3.74778,2668.3,2667.8,0.06460937]
[1727215893405,3.74778,2668.3,2667.6,3.74859]
[1727215893406,4.2482827,2668.3,2667.9,0.06454271]
[1727215893562,3.74795,2668.2,2667.9,0.06454271]
[1727215893763,3.74795,2668.2,2667.6,3.74859]
[1727215893984,3.74795,2668.2,2667.7,0.06467605]
[1727215894603,3.74799,2668.1,2667.7,0.06467605]
[1727215895680,3.74776,2668.3,2667.7,3.81310605]
[1727215895917,7.49558,2668.3,2667.7,3.81310605]
[1727215896275,3.74776,2668.3,2667.7,3.81310605]
[1727215896481,3.74792,2668.2,2667.7,3.81310605]
[1727215897717,3.74776,2668.3,2667.7,0.06467605]
[1727215897718,3.748,2668.1,2667.7,0.06467605]
[1727215897907,3.74788,2668.2,2667.7,3.81321605]
[1727215898108,3.74788,2668.2,2667.7,3.74854]
[1727215898309,3.74788,2668.2,2667.8,0.06465879]
[1727215898859,3.74798,2668.1,2667.8,0.06465879]
[1727215899192,3.74778,2668.3,2667.8,3.74837]
[1727215899393,3.74778,2668.3,2667.9,0.06459212]
[1727215899926,3.74785,2668.2,2667.9,0.06459212]
[1727215900131,3.74778,2668.3,2667.9,0.06459212]
[1727215900738,7.49562,2668.3,2667.9,0.06459212]
[1727215901324,3.74785,2668.2,2667.9,0.06459212]
[1727215901639,3.74785,2668.2,2667.7,4.53373]
[1727215901940,3.74785,2668.2,2668.0,0.06452546]
[1727215902140,3.74785,2668.2,2667.7,4.53373]
[1727215902328,3.74784,2668.2,2668.1,0.0644588]
[1727215902523,3.74784,2668.2,2667.7,4.53373]
[1727215902726,3.74784,2668.2,2668.1,0.06448962]
[1727215903041,3.98806964,2668.2,2668.1,0.06448962]
[1727215903242,3.7484,2667.9,2667.3,3.74908]
[1727215903395,3.82382552,2667.9,2667.5,3.74882]
[1727215903597,3.74842,2667.8,2667.6,0.06266375]
[1727215903811,3.74842,2667.8,2667.3,3.74908]
[1727215904040,3.74842,2667.8,2667.7,0.06259708]
[1727215904226,3.74842,2667.8,2667.3,7.4981]
[1727215904408,3.74815,2668.0,2667.7,0.06259708]
[1727215904613,3.74815,2668.0,2667.4,3.74886]
[1727215904614,7.49639,2668.0,2667.4,3.74886]
[1727215904848,3.74829,2667.9,2667.8,0.0625304]
[1727215905043,3.74829,2667.9,2667.4,3.74886]
[1727215905232,3.74829,2667.9,2667.8,0.0625304]
[1727215905400,4.497934,2667.9,2667.3,3.74902]
[1727215905609,3.74815,2668.0,2667.5,3.74881]
[1727215906019,3.74806,2668.1,2667.6,0.06266375]
[1727215906222,4.53047,2668.2,2667.7,4.53367]
[1727215906544,3.74778,2668.3,2667.7,4.53366]
[1727215906703,3.74778,2668.3,2667.8,3.81103754]
[1727215907219,3.74777,2668.3,2667.8,3.81103754]
[1727215907405,3.74773,2668.3,2667.8,7.55931754]
[1727215907599,3.74773,2668.3,2667.8,3.81098754]
[1727215908218,3.74773,2668.3,2667.8,7.55931754]
[1727215908620,3.74773,2668.3,2667.8,3.81098754]
[1727215908945,3.74785,2668.2,2667.8,3.81098754]
[1727215909312,3.74778,2668.3,2667.8,3.81098754]
[1727215909716,3.74788,2668.2,2667.8,3.81098754]
[1727215910412,3.7477,2668.3,2667.8,3.81098754]
[1727215910612,3.74786,2668.2,2667.8,3.81098754]
[1727215912345,3.7477,2668.3,2667.8,0.06265754]
[1727215912512,3.74788,2668.2,2667.8,0.06265754]
[1727215913046,1.56617473,2668.4,2667.8,0.06265754]
[1727215913207,3.74784,2668.2,2667.8,3.81097754]
[1727215913404,3.74784,2668.2,2667.8,0.06265754]
[1727215916016,7.49578,2668.2,2667.8,0.06265754]
[1727215916557,3.74826,2667.9,2667.8,0.06265754]
[1727215917042,3.74826,2667.9,2667.8,0.06261516]
[1727215917210,3.74851,2667.8,2667.3,3.7491]
[1727215917411,3.74851,2667.8,2667.4,0.06288188]
[1727215918369,3.74855,2667.7,2667.4,0.06288188]
[1727215918891,0.7575,2667.9,2667.4,0.06288188]
[1727215919025,3.74849,2667.8,2667.4,0.06288188]
[1727215919230,4.50583,2667.9,2667.4,3.81176188]
[1727215919469,4.50583,2667.9,2667.4,7.56065188]
[1727215919651,3.74833,2667.9,2667.4,3.81176188]
[1727215919830,3.74845,2667.8,2667.4,3.81176188]
[1727215920427,3.74833,2667.9,2667.5,3.7488]
[1727215920629,3.74833,2667.9,2667.5,0.06289224]
[1727215920831,3.74855,2667.7,2667.5,0.06289224]
[1727215921071,4.58172552,2667.6,2667.5,0.06289224]
[1727215921251,4.58172552,2667.6,2666.8,1.5]
[1727215921252,3.749,2667.4,2666.8,1.5]
[1727215921472,3.82466552,2667.3,2666.8,5.24972]
[1727215921781,3.82466552,2667.3,2666.9,0.06113654]
[1727215922141,3.74918,2667.3,2666.9,0.06113654]
[1727215922845,4.50703,2667.0,2666.9,0.06113654]
[1727215923454,5.42651352,2667.0,2666.9,0.06113654]
[1727215923662,6.21008825,2667.0,2666.9,0.06113654]
[1727215924067,2.46055825,2667.0,2666.9,0.06113654]
[1727215924343,3.74953,2667.0,2666.9,0.06113654]
[1727215924645,6.35727667,2667.0,2666.9,0.06113654]
[1727215924844,3.74953,2667.0,2666.9,0.06113654]
[1727215925251,4.53304473,2667.1,2666.9,0.06113654]
[1727215925752,3.74953,2667.0,2666.9,0.06113654]
[1727215925953,0.78357473,2667.1,2666.9,0.06113654]
[1727215926176,0.78357473,2667.2,2666.9,0.06113654]
[1727215926377,5.45299984,2667.2,2666.9,0.06113654]
[1727215926572,4.53291473,2667.2,2666.9,0.06113654]
[1727215926998,3.74939,2667.1,2666.9,0.06113654]
[1727215927152,4.53296473,2667.1,2666.9,0.06113654]
[1727215927353,0.78357473,2667.2,2666.9,0.06113654]
[1727215927670,0.78357473,2667.1,2666.9,0.06113654]
[1727215927989,5.45341658,2667.1,2666.9,0.06113654]
[1727215928159,0.78357473,2667.2,2666.9,0.06113654]
[1727215928354,1.70402369,2667.2,2666.9,0.06113654]
[1727215928554,0.92044896,2667.1,2666.9,0.06113654]
[1727215928787,0.78357473,2667.1,2666.9,0.06113654]
[1727215929665,0.92124538,2667.1,2666.9,0.06113654]
[1727215929899,0.78357473,2667.1,2666.9,0.06113654]
[1727215930271,0.78357473,2667.2,2666.9,0.06113654]
[1727215930590,0.78357473,2667.1,2666.9,0.06113654]
[1727215931885,0.78357473,2667.2,2666.9,0.06113654]
[1727215932106,1.70480041,2667.2,2666.9,3.81078654]
[1727215932258,0.78357473,2667.4,2667.2,3.74925]
[1727215932465,0.78357473,2667.6,2667.2,0.8234]
[1727215932660,0.78357473,2667.6,2667.3,0.05936957]
[1727215932994,0.78357473,2667.6,2667.2,4.57257]
[1727215932995,1.70475528,2667.6,2667.2,4.57257]
[1727215933171,3.74856,2667.7,2667.2,4.57257]
[1727215933172,1.70475528,2667.5,2667.4,0.05930288]
[1727215933376,0.92118055,2667.5,2667.3,0.05936957]
[1727215933606,0.78357473,2667.6,2667.4,0.05930288]
[1727215933786,1.70478598,2667.6,2667.2,4.57263]
[1727215934101,1.70478598,2667.6,2667.3,0.05936957]
[1727215934308,1.70478598,2667.6,2667.2,4.57263]
[1727215934460,1.70478598,2667.6,2667.4,0.05930288]
[1727215934665,0.92125741,2667.5,2667.2,4.57263]
[1727215934999,0.78357473,2667.5,2667.2,4.57263]
[1727215935203,0.78357473,2667.6,2667.2,4.57263]
[1727215935403,1.70482732,2667.6,2667.2,4.57263]
[1727215935566,1.70482732,2667.5,2667.2,4.57263]
[1727215935900,0.78357473,2667.5,2667.2,4.57263]
[1727215936285,0.78357473,2667.6,2667.2,4.57263]
[1727215936602,0.78357473,2667.5,2667.2,4.57263]
[1727215936803,1.7048623,2667.6,2667.2,5.07263]
[1727215937108,0.78357473,2667.6,2667.3,3.7491]
[1727215937274,0.78357473,2667.6,2667.2,8.8218]
[1727215937481,0.92133683,2667.6,2667.5,3.74882]
[1727215937813,0.78357473,2667.9,2667.8,3.7484]
[1727215938111,0.78357473,2668.1,2668.0,3.74812]
[1727215938314,0.78357473,2668.3,2668.1,3.74791]
[1727215938599,0.78357473,2668.3,2668.0,3.74812]
[1727215940001,0.78357473,2668.3,2668.0,7.49617]
[1727215940502,0.78357473,2668.3,2668.1,3.80658487]
[1727215940704,0.78357473,2668.3,2668.1,0.05860487]
[1727215941003,0.78357473,2668.2,2668.1,0.05860487]
[1727215941165,0.78357473,2668.2,2667.9,3.74823]
[1727215941360,0.78357473,2668.2,2668.1,0.05860487]
[1727215941600,0.78357473,2668.2,2668.0,0.05867153]
[1727215941797,0.78357473,2668.2,2668.1,0.05860487]
[1727215942109,0.78357473,2668.2,2667.9,3.74823]
[1727215942323,1.17529732,2668.9,2668.2,0.8234]
[1727215942619,3.53020632,2669.1,2668.1,0.05860487]
[1727215942620,0.39228725,2669.5,2669.2,0.8234]
[1727215942766,0.39228725,2669.5,2669.2,3.90613212]
[1727215942964,0.0384013,2669.6,2669.3,0.05749725]
[1727215943994,0.0384013,2669.6,2669.3,3.80370725]
[1727215944823,0.0384013,2669.6,2669.5,6.82874212]
[1727215945173,0.0384013,2669.6,2669.5,6.88586752]
[1727215945370,0.0384013,2669.6,2669.5,0.0571254]
[1727215945890,0.0384013,2669.6,2669.5,3.8031354]
[1727215946397,0.0384013,2669.6,2669.5,0.0571254]
[1727215946571,0.0384013,2669.6,2669.5,3.8031354]
[1727215946768,0.0384013,2669.6,2669.5,0.0571254]
[1727215947425,0.0384013,2669.6,2669.5,3.8031354]
[1727215948515,0.0384013,2669.6,2669.5,0.0571254]
[1727215948714,0.0384013,2669.6,2669.4,3.74606]
[1727215948926,0.0384013,2669.6,2669.5,0.0562475]
[1727215950488,0.0384013,2669.6,2669.5,3.8022575]
[1727215950927,0.0384013,2669.6,2669.5,4.6256575]
[1727215952736,0.0384013,2669.6,2669.5,7.70057312]
[1727215953043,0.0384013,2669.6,2669.5,7.6256575]
[1727215953949,0.0384013,2669.6,2669.5,11.4893193]
[1727215954094,0.0384013,2669.6,2669.5,11.96441281]
[1727215956336,0.0384013,2669.6,2669.5,11.41441281]
[1727215956958,0.0384013,2669.6,2669.5,11.96441281]
[1727215957554,0.0384013,2669.6,2669.5,8.41441281]
[1727215957711,0.0384013,2669.6,2669.5,4.6256575]
[1727215957910,23.62811461,2670.0,2669.9,3.74545]
[1727215958173,0.0384013,2672.0,2670.4,3.74466]
[1727215958456,3.7810113,2672.0,2671.1,3.74377]
[1727215958643,3.7810113,2672.0,2671.1,4.52407]
[1727215958644,4.5702113,2672.0,2671.1,4.52407]
[1727215959006,3.74269,2671.9,2671.1,4.57496917]
[1727215959163,3.74269,2671.9,2671.1,0.05089917]
[1727215959451,0.7892,2671.4,2671.1,0.05089917]
[1727215959651,0.7892,2671.4,2670.2,3.78875531]
[1727215959652,3.7820313,2671.2,2670.4,4.52496]
[1727215959867,3.7820313,2671.2,2671.1,0.04844233]
[1727215960155,3.7820313,2671.2,2670.5,3.79344145]
[1727215960360,3.7820313,2671.2,2671.1,0.04844233]
[1727215960510,3.7820313,2671.2,2670.5,3.74457]
[1727215960826,0.37820313,2671.1,2670.5,3.74457]
[1727215961162,0.37820313,2671.1,2670.4,4.52495]
[1727215961327,0.37820313,2671.1,2670.6,0.04877492]
[1727215961525,0.37820313,2671.1,2670.4,3.74465]
[1727215961526,0.37820313,2671.1,2670.5,0.04884145]
[1727215961724,4.12200313,2671.1,2670.7,0.04870839]
[1727215961928,0.79040344,2671.0,2670.4,3.74465]
[1727215962136,0.79040344,2671.0,2670.8,0.04864187]
[1727215962355,0.79040344,2671.0,2670.4,3.74465]
[1727215962530,0.79040344,2671.0,2670.9,0.04857535]
[1727215962749,0.79040344,2671.0,2670.2,0.7803]
[1727215963077,0.0384013,2671.2,2670.6,3.74438]
[1727215963635,0.0384013,2671.2,2670.7,0.04870839]
[1727215963636,3.7820513,2671.2,2670.7,0.04870839]
[1727215964979,0.7892,2670.9,2670.7,0.04870839]
[1727215965140,4.5713113,2671.2,2670.7,0.04870839]
[1727215965340,0.45713113,2671.1,2670.7,0.04870839]
[1727215965575,0.45713113,2671.1,2670.5,3.7446]
[1727215965745,0.45713113,2671.1,2670.8,0.04864187]
[1727215965955,0.8276013,2671.2,2670.7,3.74433]
[1727215966169,0.8276013,2671.2,2670.9,0.04857535]
[1727215966170,4.5712813,2671.2,2670.9,0.04857535]
[1727215966358,4.5712813,2671.2,2670.6,3.74434]
[1727215966559,0.45712813,2671.1,2671.0,0.04850884]
[1727215966751,0.45712813,2671.1,2670.6,3.74434]
[1727215966952,0.45712813,2671.1,2671.0,0.04850884]
[1727215967281,0.45712813,2671.1,2670.7,3.74432]
[1727215967484,0.8276013,2671.2,2670.7,3.74433]
[1727215967647,0.8276013,2671.2,2670.8,0.04864187]
[1727215968046,0.8276013,2671.2,2670.6,3.74434]
[1727215968255,0.8276013,2671.2,2670.1,3.7451]
[1727215968256,0.0384013,2671.2,2671.1,3.74377]
[1727215968545,0.39179684,2672.7,2671.9,7.52295]
[1727215968779,0.0384013,2672.8,2671.9,7.52295]
[1727215968942,0.0384013,2672.8,2671.9,7.57086045]
[1727215969280,0.0384013,2672.8,2671.9,0.04791045]
[1727215969281,0.7892,2672.3,2671.9,0.04791045]
[1727215969591,3.74184,2672.5,2671.9,0.04791045]
[1727215970089,3.74178,2672.6,2671.7,3.74291]
[1727215970392,0.7892,2672.1,2671.9,0.04768032]
[1727215970681,0.7892,2672.1,2671.8,0.04774678]
[1727215970886,0.7892,2672.1,2671.6,3.74304]
[1727215970887,0.7892,2672.1,2671.9,0.04732366]
[1727215971050,0.7892,2672.1,2671.6,3.74304]
[1727215971250,0.7892,2672.1,2671.4,3.74322]
[1727215971251,0.7892,2672.1,2671.7,0.04703222]
[1727215971580,0.49538843,2672.0,2671.4,7.48648]
[1727215971781,0.0384013,2672.0,2671.8,0.04696575]
[1727215971984,0.0384013,2672.0,2671.4,3.74322]
[1727215972150,0.0384013,2672.0,2671.9,0.04699127]
[1727215972151,3.7809113,2672.0,2671.9,0.04699127]
[1727215972351,3.7809113,2672.0,2671.4,3.74334]
[1727215972352,0.86963743,2672.0,2671.4,3.74334]
[1727215972579,0.86963743,2672.0,2671.9,0.04699127]
[1727215972764,4.61214743,2672.0,2671.3,3.74348]
[1727215973085,4.61214743,2672.0,2671.4,3.74326]
[1727215973086,0.54012074,2671.9,2671.4,3.74326]
[1727215973386,4.61216743,2672.0,2671.4,3.74326]
[1727215973889,0.86963743,2672.0,2671.5,3.74317]
[1727215974090,0.0384013,2672.0,2671.5,3.74317]
[1727215974292,0.0384013,2672.0,2671.4,3.7433]
[1727215974750,0.0384013,2672.0,2671.5,3.74321]
[1727215974946,0.0384013,2672.0,2671.4,3.7433]
[1727215976346,3.7809313,2672.0,2671.3,3.74346]
[1727215976562,0.45701313,2671.9,2671.6,3.74307]
[1727215976849,0.0384013,2672.0,2671.7,0.04719321]
[1727215977060,0.0384013,2672.0,2671.4,3.74326]
[1727215977384,0.0384013,2672.0,2671.5,0.04729934]
[1727215977864,0.7738,2671.7,2671.5,0.04729934]
[1727215978058,0.7738,2671.7,2671.2,3.74357]
[1727215978263,0.7738,2671.7,2671.3,0.04743232]
[1727215978599,0.7738,2671.7,2671.2,3.74357]
[1727215978600,1.225449,2671.7,2671.4,3.74324]
[1727215978884,0.7738,2671.7,2671.4,3.79060583]
[1727215979986,0.7738,2671.7,2671.4,0.04736583]
[1727215980287,0.7738,2671.7,2671.2,3.7436]
[1727215980460,0.7738,2671.7,2671.3,0.04743232]
[1727215980658,0.7738,2671.7,2671.4,3.74332]
[1727215980858,0.0384013,2672.0,2671.5,0.04729934]
[1727215981058,0.0384013,2672.0,2671.9,3.74265]
[1727215981279,0.0384013,2672.0,2671.9,3.78990577]
[1727215981650,3.7798213,2672.8,2671.9,3.78990577]
[1727215981651,0.7738,2672.5,2672.0,4.9615987]
[1727215981893,0.7738,2672.5,2672.1,0.04712285]
[1727215983363,0.7738,2672.5,2672.1,3.78946285]
[1727215983561,0.7738,2672.5,2672.2,3.74219]
[1727215983879,0.37798213,2672.7,2672.3,0.04698995]
[1727215984058,0.8025198,2672.8,2672.0,8.7040087]
[1727215984387,0.8025198,2672.8,2672.1,0.04712285]
[1727215984773,3.74211,2672.3,2672.1,0.04712285]
[1727215987291,5.341844,2672.2,2672.1,0.04712285]
[1727215988650,1.599614,2672.2,2672.1,0.04712285]
[1727215988846,0.7738,2672.2,2672.1,0.04712285]
[1727215989756,4.51603,2672.2,2672.1,0.04712285]
[1727215991089,4.63077552,2672.2,2672.1,0.04712285]
[1727215991391,3.74237,2672.1,2672.0,4.9615987]
[1727215991973,3.74237,2672.1,2672.0,5.00549291]
[1727215992285,4.55523,2672.2,2672.0,5.00549291]
[1727215992286,4.55525,2672.2,2672.0,5.00549291]
[1727215992787,3.74212,2672.3,2672.0,5.00549291]
[1727215993286,3.74203,2672.4,2672.0,5.00549291]
[1727215994257,3.7421,2672.3,2672.0,5.00549291]
[1727215995592,3.74237,2672.1,2672.0,5.00549291]
[1727216000679,3.74237,2672.1,2672.0,4.9615987]
[1727216001009,4.490831,2672.1,2672.0,5.00556947]
[1727216001977,5.303831,2672.1,2672.0,5.00556947]
[1727216002179,7.6635943,2672.1,2672.0,5.00556947]
[1727216002387,7.66728208,2672.1,2672.0,5.512919]
[1727216002578,3.74191,2672.5,2672.0,5.512919]
[1727216002890,0.0287198,2672.8,2672.5,3.74168]
[1727216003089,0.0287198,2672.8,2672.4,0.7975]
[1727216003090,0.0287198,2672.8,2672.4,0.87233098]
[1727216003302,0.0287198,2672.8,2672.6,0.04085523]
[1727216003464,1.00593896,2673.5,2672.8,0.7975]
[1727216003669,1.00593896,2673.5,2673.4,4.53805]
[1727216003867,1.00593896,2673.5,2673.4,4.57819051]
[1727216004280,1.00593896,2673.5,2673.4,8.36694582]
[1727216004793,1.00593896,2673.5,2673.4,4.57819051]
[1727216005291,1.00593896,2673.5,2673.4,0.83764051]
[1727216006080,1.00593896,2673.5,2673.4,3.78069051]
[1727216006404,1.00593896,2673.5,2673.4,0.04014051]
[1727216008199,1.00593896,2673.5,2673.4,3.78069051]
[1727216008624,1.00593896,2673.5,2673.4,0.04014051]
[1727216011128,1.00593896,2673.5,2673.4,7.64424914]
[1727216011287,1.00593896,2673.5,2673.4,7.65639967]
[1727216011686,1.00593896,2673.5,2673.4,8.45389967]
[1727216011889,1.00593896,2673.5,2673.4,8.37909635]
[1727216013994,0.0426666,2675.4,2675.0,0.7308]
[1727216014354,0.0426666,2675.4,2673.5,3.0]
[1727216014355,0.0426666,2675.4,2674.6,0.39113664]
[1727216014495,3.7805466,2675.4,2674.6,0.39113664]
[1727216014693,0.0426666,2675.4,2674.7,0.05068265]
[1727216015004,0.0426666,2675.4,2674.8,0.07476887]
[1727216015328,0.0426666,2675.4,2674.8,3.86953699]
[1727216015488,0.0426666,2675.4,2674.8,0.05617812]
[1727216016086,0.0426666,2675.4,2674.8,3.79474812]
[1727216016290,0.0426666,2675.4,2674.8,3.80915518]
[1727216017303,0.0426666,2675.4,2674.7,3.73871]
[1727216017639,0.0426666,2675.4,2674.6,4.12997664]
[1727216017640,3.738,2675.3,2674.6,0.39113664]
[1727216017927,3.738,2675.3,2674.6,0.45233563]
[1727216018430,3.73833,2675.0,2674.6,0.45233563]
[1727216018637,0.0426666,2675.4,2674.8,3.73849]
[1727216018789,0.0426666,2675.4,2674.6,4.12993664]
[1727216019213,0.0426666,2675.4,2674.6,0.39113664]
[1727216019413,0.0426666,2675.4,2674.6,4.12998664]
[1727216019728,0.0426666,2675.4,2674.9,3.73841]
[1727216019931,0.0426666,2675.4,2674.6,4.12993664]
[1727216020137,4.15857126,2675.4,2674.6,0.39113664]
[1727216020428,3.7379,2675.3,2674.3,0.7308]
[1727216020736,3.7805566,2675.4,2674.4,3.73905]
[1727216021034,3.73803,2675.3,2674.3,4.47009]
[1727216021246,0.37806966,2675.2,2674.3,4.47009]
[1727216021534,3.7382,2675.1,2674.3,0.7308]
[1727216021730,4.5136,2675.1,2674.3,0.7308]
[1727216022437,4.5136,2675.1,2674.0,4.55321]
[1727216022605,0.48916697,2675.0,2674.1,0.07478022]
[1727216022813,0.7754,2675.1,2674.4,3.73915]
[1727216023015,0.7754,2675.1,2674.2,3.73933]
[1727216023213,0.7754,2675.1,2674.3,3.73928]
[1727216023628,0.7754,2675.1,2674.2,3.73933]
[1727216024537,4.51358,2675.1,2674.2,3.73933]
[1727216024737,0.451358,2675.0,2674.2,3.73933]
[1727216024941,0.451358,2675.0,2674.0,4.55325]
[1727216024942,4.189728,2675.0,2674.0,8.29282]
[1727216025452,3.73861,2674.8,2674.0,0.8136]
[1727216025651,3.73853,2674.9,2674.0,0.8136]
[1727216025807,3.73853,2674.9,2674.0,4.55321]
[1727216026008,8.30241531,2675.1,2674.1,7.47905]
[1727216026223,8.30241531,2675.1,2674.1,3.73949]
[1727216026224,12.04067531,2675.1,2674.1,3.73949]
[1727216026509,0.83024153,2675.0,2674.1,3.73949]
[1727216026703,4.56868153,2675.0,2674.1,3.73949]
[1727216027240,0.83024153,2675.0,2674.3,3.73926]
[1727216027405,0.83024153,2675.0,2674.2,7.47875]
[1727216027607,4.56863153,2675.0,2674.0,4.55319]
[1727216027945,0.7754,2675.1,2674.0,4.55319]
[1727216028109,3.7388,2674.7,2673.8,3.7399]
[1727216028307,3.7388,2674.7,2673.6,4.55384]
[1727216028308,3.73903,2674.5,2673.6,4.55384]
[1727216028554,0.7754,2674.5,2673.6,4.55383]
[1727216028754,0.7754,2674.9,2674.2,3.73942]
[1727216028936,0.7754,2674.9,2674.4,3.73903]
[1727216029253,0.7754,2674.9,2673.9,3.7398]
[1727216029457,0.7754,2674.9,2674.6,3.73875]
[1727216029805,0.0426666,2675.4,2674.6,3.73875]
[1727216030049,0.7754,2675.3,2674.6,3.73875]
[1727216030247,0.7754,2675.3,2674.7,3.73873]
[1727216031129,0.7754,2675.3,2674.9,3.73837]
[1727216031329,0.42068926,2675.4,2675.0,3.73821]
[1727216031330,0.0426666,2675.4,2675.0,3.73821]
[1727216031550,0.0426666,2675.4,2675.0,3.73825]
[1727216031740,0.0426666,2675.4,2675.2,3.73803]
[1727216032048,0.0426666,2675.4,2675.3,3.73789]
[1727216034127,0.0426666,2675.4,2675.2,3.73803]
[1727216034569,0.0426666,2675.4,2674.8,3.73848]
[1727216034727,0.0426666,2675.4,2675.0,3.73831]
[1727216035570,0.0426666,2675.4,2674.8,3.73853]
[1727216035571,0.0426666,2675.4,2674.9,3.73837]
[1727216035739,0.0426666,2675.4,2674.8,3.73853]
[1727216035939,0.0426666,2675.4,2675.0,3.73822]
[1727216036144,0.0426666,2675.4,2674.8,3.73848]
[1727216036476,0.0426666,2675.4,2674.9,3.73843]
[1727216036677,0.0426666,2675.4,2675.2,3.73796]
[1727216036976,0.0426666,2675.4,2675.2,3.73794]
[1727216037272,0.0426666,2675.4,2674.3,3.8321]
[1727216037584,0.0426666,2675.4,2675.0,3.73823]
[1727216037764,0.0426666,2675.4,2674.6,0.07476214]
[1727216037990,0.0426666,2675.4,2675.2,3.73791]
[1727216038298,0.0426666,2675.4,2675.0,7.47645]
[1727216038465,0.0426666,2675.4,2675.2,3.73801]
[1727216038671,0.0426666,2675.4,2675.2,3.738]
[1727216039175,0.0426666,2675.4,2675.0,3.73827]
[1727216039372,0.7536,2675.9,2674.3,0.8321]
[1727216039373,0.7536,2675.9,2674.8,3.7385]
[1727216039570,3.73733,2675.8,2674.9,3.73844]
[1727216039805,6.47466,2675.8,2674.9,3.73844]
[1727216039959,3.73733,2675.8,2674.9,3.73844]
[1727216040155,4.54155531,2675.6,2674.3,0.8321]
[1727216040363,3.73776,2675.4,2674.5,3.7389]
[1727216040600,4.19184553,2675.5,2674.6,3.73874]
[1727216040801,3.73783,2675.4,2674.6,3.73874]
[1727216041005,4.19184553,2675.5,2674.6,3.73874]
[1727216041209,4.19184553,2675.5,2674.4,3.73908]
[1727216041509,4.49094,2675.2,2674.4,3.73905]
[1727216041883,4.49094,2675.2,2674.0,0.8321]
[1727216041884,3.73825,2675.1,2674.3,3.73925]
[1727216042205,3.73825,2675.1,2674.2,3.73932]
[1727216042499,3.7385,2674.9,2674.0,4.57179]
[1727216042658,0.7528,2674.7,2674.0,3.73969]
[1727216042863,0.7528,2674.7,2674.0,3.73963]
[1727216043211,3.78875531,2674.4,2673.6,0.8321]
[1727216043357,0.55,2674.6,2672.3,0.0437816]
[1727216043358,3.74005,2673.8,2673.2,0.0213718]
[1727216043759,0.7528,2673.6,2673.2,0.0213718]
[1727216043959,4.49309,2673.6,2673.2,0.0213718]
[1727216044862,0.7528,2673.6,2673.2,0.0213718]
[1727216045484,4.54155531,2673.6,2673.2,0.0213718]
[1727216045716,4.56858653,2673.5,2673.2,0.0213718]
[1727216046225,5.32138653,2673.5,2673.2,0.0213718]
[1727216046426,3.74069,2673.3,2673.2,0.0213718]
[1727216046731,11.19434807,2673.3,2673.2,0.0213718]
[1727216046897,13.43766398,2673.3,2673.2,0.0213718]
[1727216047097,12.26236666,2673.3,2673.2,0.0213718]
[1727216047306,13.43766398,2673.3,2673.2,0.0213718]
[1727216047631,12.26236666,2673.3,2673.2,0.0213718]
[1727216047981,13.04202445,2673.3,2673.2,0.0213718]
[1727216048225,11.35618009,2673.3,2673.2,0.0213718]
[1727216048407,5.51303953,2673.3,2673.2,0.0213718]
[1727216048729,2.60351437,2673.3,2673.2,0.0213718]
[1727216048885,0.7528,2673.3,2673.2,0.0213718]